{"text_format":"3","workbook":"xlsx","n_sheets":3,"sheets":["Student List","Class Roster","Student Details"],"not_rendered":{"images":2,"defined_names":8},"read":"whole","date_system":"1900"}

{"sheet":"Student List","index":0,"n_rows":8,"n_cols":13,"rows_kept":8,"merged":[[1,2,2,3],[1,4,1,11],[2,4,2,11],[6,12,8,16]]}
[]
[null,null,"Zoznam študentov",null,"PREJSŤ NA SÚPISKU TRIEDY"]
[{"$nulls":4},"PREJSŤ NA PODROBNOSTI O ŠTUDENTOCH"]
[null,null,"MENO ŠTUDENTA","E-MAIL","TELEFÓN DOMOV","MOBILNÝ TELEFÓN","Dátum narodenia","KONTAKT PRE PRÍPAD NÚDZE","TELEFÓN PRE PRÍPAD NÚDZE","LEKÁR","TELEFÓN LEKÁRA","  "]
[null,null,"Meno 1","E-mailová adresa","Telefón domov","Mobilný telefón","Dátum","Kontakt 1","Telefón pre prípad núdze","Lekár 1","Telefón lekára"]
[null,null,"Názov 2","E-mailová adresa","Telefón domov","Mobilný telefón","Dátum","Kontakt 2","Telefón pre prípad núdze","Lekár 2","Telefón lekára"]
[null,null,"Meno 3","E-mailová adresa","Telefón domov","Mobilný telefón","Dátum","Kontakt 3","Telefón pre prípad núdze","Lekár 3","Telefón lekára",null,"Tip: Ak chcete pridať ďalších študentov, prejdite a poslednú bunku tabuľky a stlačte kláves Tab."]
[null,null,"Meno 4","E-mailová adresa","Telefón domov","Mobilný telefón","Dátum","Kontakt 4","Telefón pre prípad núdze","Lekár 4","Telefón lekára"]

{"sheet":"Class Roster","index":1,"n_rows":12,"n_cols":7,"rows_kept":12,"merged":[[1,2,2,2],[1,3,2,3],[1,4,1,6],[2,4,2,6]]}
[]
[null,null,"Súpiska triedy","Inštitút grafických návrhov","PREJSŤ NA ZOZNAM ŠTUDENTOV"]
[{"$nulls":4},"PREJSŤ NA PODROBNOSTI O ŠTUDENTOCH"]
[null,null,"PREDMET","Názov predmetu","DÁTUM ZAČATIA","Dátum"]
[null,null,"VYUČUJÚCI","Vyučujúci 1","DÁTUM UKONČENIA","Dátum"]
[null,null,"ZAPÍSANÍ ŠTUDENTI",{"$f":"COUNTA(StudentRoster[MENO ŠTUDENTA])","v":4}]
[]
[null,null,"MENO ŠTUDENTA","E-MAIL","TELEFÓN DOMOV","MOBILNÝ TELEFÓN","  "]
[null,null,"Meno 1",{"$f":"IFERROR(VLOOKUP(StudentRoster[[#This Row],[STUDENT NAME]],Students[],2),\"\")","v":"Email address"},{"$f":"IFERROR(VLOOKUP(StudentRoster[[#This Row],[STUDENT NAME]],Students[],3),\"\")","v":"Home phone"},{"$f":"IFERROR(VLOOKUP(StudentRoster[[#This Row],[STUDENT NAME]],Students[],4),\"\")","v":"Cell phone"}]
[null,null,"Názov 2",{"$f":"IFERROR(VLOOKUP(StudentRoster[[#This Row],[STUDENT NAME]],Students[],2),\"\")","v":"Email address"},{"$f":"IFERROR(VLOOKUP(StudentRoster[[#This Row],[STUDENT NAME]],Students[],3),\"\")","v":"Home phone"},{"$f":"IFERROR(VLOOKUP(StudentRoster[[#This Row],[STUDENT NAME]],Students[],4),\"\")","v":"Cell phone"}]
[null,null,"Meno 3",{"$f":"IFERROR(VLOOKUP(StudentRoster[[#This Row],[STUDENT NAME]],Students[],2),\"\")","v":"Email address"},{"$f":"IFERROR(VLOOKUP(StudentRoster[[#This Row],[STUDENT NAME]],Students[],3),\"\")","v":"Home phone"},{"$f":"IFERROR(VLOOKUP(StudentRoster[[#This Row],[STUDENT NAME]],Students[],4),\"\")","v":"Cell phone"}]
[null,null,"Meno 4",{"$f":"IFERROR(VLOOKUP(StudentRoster[[#This Row],[STUDENT NAME]],Students[],2),\"\")","v":"Email address"},{"$f":"IFERROR(VLOOKUP(StudentRoster[[#This Row],[STUDENT NAME]],Students[],3),\"\")","v":"Home phone"},{"$f":"IFERROR(VLOOKUP(StudentRoster[[#This Row],[STUDENT NAME]],Students[],4),\"\")","v":"Cell phone"}]

{"sheet":"Student Details","index":2,"n_rows":13,"n_cols":4,"rows_kept":13,"merged":[[1,2,2,2],[1,3,1,4],[2,3,2,4],[3,2,3,3]]}
[]
[null,null,"Podrobnosti o študentoch","PREJSŤ NA ZOZNAM ŠTUDENTOV"]
[{"$nulls":3},"PREJSŤ NA SÚPISKU TRIEDY"]
[null,null,"TIP: VÝBEROM ŠTUDENTA V ROZBAĽOVACOM ZOZNAME V BUNKE D5 AKTUALIZUJETE PODROBNOSTI O ŠTUDENTOCH"]
[null,null,"MENO ŠTUDENTA","Meno 1"]
[null,null,"E-MAIL",{"$f":"IFERROR(VLOOKUP(StudentName,Students[],2,FALSE),\"\")","v":"Email address"}]
[null,null,"TELEFÓN DOMOV",{"$f":"IFERROR(VLOOKUP(StudentName,Students[],3,FALSE),\"\")","v":"Home phone"}]
[null,null,"MOBILNÝ TELEFÓN",{"$f":"IFERROR(VLOOKUP(StudentName,Students[],4,FALSE),\"\")","v":"Cell phone"}]
[null,null,"Dátum narodenia",{"$f":"IFERROR(VLOOKUP(StudentName,Students[],5,FALSE),\"\")","v":"Date"}]
[null,null,"KONTAKT PRE PRÍPAD NÚDZE",{"$f":"IFERROR(VLOOKUP(StudentName,Students[],6,FALSE),\"\")","v":"Contact 1"}]
[null,null,"TELEFÓN PRE PRÍPAD NÚDZE",{"$f":"IFERROR(VLOOKUP(StudentName,Students[],7,FALSE),\"\")","v":"Emergency phone"}]
[null,null,"LEKÁR",{"$f":"IFERROR(VLOOKUP(StudentName,Students[],8,FALSE),\"\")","v":"Physician 1"}]
[null,null,"TELEFÓN LEKÁRA",{"$f":"IFERROR(VLOOKUP(StudentName,Students[],9,FALSE),\"\")","v":"Physician phone"}]